Cogmind - Beta 11 X2 @@@ ROGUE MODE // 2021.02.17 @ 19:06:52 Player: Vulpy Result: Destroyed by Combat Programmer with EMDS Performance ------------- Evolutions (9) 4500 Regions Visited (24) 4800 Robots Destroyed (283) 1415 Value Destroyed (14755) 14755 Prototype IDs (48) 960 Alien Tech Used (2) 400 Bonus (2816) 2816 TOTAL SCORE: 29646 Bonus ------- High Alert Combat Kills 2771 Follower Combat Kills 410 Aligned with FarCom 300 Met Zhirov 300 Friendly Fire -965 Cogmind --------- Core Integrity 0/1600 Matter 25/300 Energy 89/350 System Corruption 31% Temperature Cool (0) Movement Treading (145) Location -1/Command Parts ------- > --- POWER (1) -------- Quantum Reactor > --- PROPULSION (6) --- Advanced Heavy Treads > --- UTILITY (14) ----- Terrain Scan Processor Improved Armor Integrity Analyzer > --- WEAPON (4) ------- (None) > --- INVENTORY (5) ---- Hacking Suite Peak State ------------ > --- POWER ------------ Quantum Reactor > --- PROPULSION ------- Advanced Heavy Treads Biometal Heavy Treads Biometal Heavy Treads > --- UTILITY ---------- Improved Heat Shielding Advanced Heat Sink Advanced Heat Sink High-capacity Storage Unit Advanced Energy Well Enhanced Optical Array Long-range Terrain Scanner Terrain Scan Processor Improved Launcher Guidance Computer Advanced Target Analyzer Improved Armor Integrity Analyzer Improved Hacking Suite Improved System Backup Module Improved System Backup Module > --- WEAPON ----------- Gamma Rifle Gamma Rifle KE Penetrator Hypervelocity Mass Driver > --- INVENTORY -------- Heavy Antimatter Reactor Particle Reactor Medium Treads Advanced Heavy Treads Advanced Heavy Treads Advanced Heat Sink Large Storage Unit Advanced Target Analyzer Advanced Target Analyzer Gamma Rifle Gamma Rifle Heavy Disruptor Cannon Compact HERF Cannon Compact HERF Cannon Tiamat Missile Launcher Makeshift Sword [Rating: 175] Favorites ----------- Power Improved Ion Engine Engine Improved Ion Engine Power Core Fission Core Reactor Heavy Antimatter Reactor Propulsion Light Treads Treads Light Treads Leg Aluminum Leg Wheel Wheel Flight Unit Impulse Thruster Utility Large Storage Unit Device Advanced Heat Sink Storage Large Storage Unit Processor Advanced Targeting Computer Hackware Advanced System Shield Protection Improved Light Armor Plating Weapon Improved KE Penetrator Energy Gun Gatling Laser Energy Cannon Heavy Particle Cannon Ballistic Gun Improved KE Penetrator Ballistic Cannon Bore Cannon Launcher Tiamat Missile Launcher Special Weapon Mining Laser Impact Weapon Makeshift Hammer Slashing Weapon Makeshift Sword Build | -11 -10 -10 -10 -9 -8 -8 -7 -7 -7 -6 -5 -5 -5 -5 -5 -4 -4 -4 -4 -3 -3 -2 -1 -1 ------- Run | Scr Mat Min Exi Min Mat Sto Fac Low Low Fac Fac Ext Cet Arc Hub Fac Upp Upp Zhi Pro Res Res Acc Com Slots Evolved 18 | . . . . . 4 . 2 . . 2 2 . . . . 2 . . . . 2 2 2 . Power . | . . . . . . . . . . . . . . . . . . . . . . . . . Propulsion 4 | . . . . . 1 . . . . 1 . . . . . . . . . . 1 1 . . Utility 12 | . . . . . 3 . 2 . . . 2 . . . . 1 . . . . 1 1 2 . Weapon 2 | . . . . . . . . . . 1 . . . . . 1 . . . . . . . . Parts Attached 355 | . 20 1 1 1 22 27 19 3 4 32 19 6 21 10 2 16 . 8 9 15 29 23 59 8 Power 20 | . 1 . . . 2 1 . . . 1 2 . 3 . . 4 . 1 1 . . 1 1 2 Engine 4 | . 1 . . . . 1 . . . . . . 1 . . 1 . . . . . . . . Core 10 | . . . . . 2 . . . . 1 2 . 2 . . 2 . 1 . . . . . . Reactor 6 | . . . . . . . . . . . . . . . . 1 . . 1 . . 1 1 2 Propulsion 72 | . 10 . 1 1 4 7 4 . 1 7 6 2 2 2 . 2 . 1 . 4 5 4 5 4 Treads 64 | . 6 . 1 . 4 7 4 . 1 7 6 2 2 2 . 2 . 1 . 4 5 4 5 1 Leg . | . . . . . . . . . . . . . . . . . . . . . . . . . Wheel 5 | . 4 . . 1 . . . . . . . . . . . . . . . . . . . . Hover . | . . . . . . . . . . . . . . . . . . . . . . . . . Flight 3 | . . . . . . . . . . . . . . . . . . . . . . . . 3 Utility 113 | . 5 . . . 6 7 8 3 1 12 5 1 3 1 2 6 . 1 6 1 16 9 18 2 Device 57 | . 1 . . . 4 3 3 1 . 10 4 1 2 . 1 5 . . 2 . 7 3 9 1 Storage 18 | . 2 . . . . 2 1 1 . . . . . . . . . . 2 1 4 3 2 . Processor 16 | . 1 . . . . 1 1 1 . 1 1 . . . . 1 . . . . 3 2 3 1 Hackware 3 | . . . . . . . . . . . . . . . . . . . . . 1 . 2 . Protection 19 | . 1 . . . 2 1 3 . 1 1 . . 1 1 1 . . 1 2 . 1 1 2 . Artifact . | . . . . . . . . . . . . . . . . . . . . . . . . . Weapon 150 | . 4 1 . . 10 12 7 . 2 12 6 3 13 7 . 4 . 5 2 10 8 9 35 . Energy Gun 21 | . 1 . . . . 1 . . . 1 . . 4 4 . . . . . . . 1 9 . Energy Cannon 23 | . 1 . . . 1 1 . . . 1 1 . 3 1 . 1 . . . . . 1 12 . Ballistic Gun 27 | . 1 1 . . 2 . . . 2 1 2 1 3 1 . 3 . 2 1 3 . 1 3 . Ballistic Cannon 32 | . . . . . 2 5 4 . . 4 1 1 2 . . . . 2 . . 6 3 2 . Launcher 14 | . . . . . 1 3 . . . . . . . . . . . . . 5 2 . 3 . Special Weapon 10 | . . . . . 4 2 3 . . . . . . . . . . . . . . . 1 . Impact Weapon 10 | . . . . . . . . . . 5 2 1 1 1 . . . . . . . . . . Slashing Weapon 13 | . 1 . . . . . . . . . . . . . . . . 1 1 2 . 3 5 . Piercing Weapon . | . . . . . . . . . . . . . . . . . . . . . . . . . Special Melee Weapon . | . . . . . . . . . . . . . . . . . . . . . . . . . Unidentified Prototypes 16 | . . . . . . . . . . . . . 4 . . 1 . . 6 2 1 . 2 . Parts Lost 96 | . 1 . . . 1 4 . . 1 5 1 2 12 7 . 3 . 3 . 3 5 2 37 9 Power 6 | . . . . . 1 1 . . . . . . 2 . . . . 1 . . . . 1 . Propulsion 18 | . . . . . . 1 . . . 2 . 1 4 . . 1 . 1 . 2 1 . 2 3 Utility 31 | . . . . . . . . . . 1 . 1 1 . . 2 . 1 . 1 1 2 16 5 Weapon 41 | . 1 . . . . 2 . . 1 2 1 . 5 7 . . . . . . 3 . 18 1 Highest Loss Streak 14 | . 1 . . . 1 2 . . 1 2 1 2 7 4 . 2 . 2 . 2 1 1 14 8 Average Slot Usage (%) 93 | . 95 100 100 100 99 100 100 100 99 97 94 93 86 85 88 91 100 99 99 97 89 83 78 38 Engine 2 | . 14 14 14 14 1 7 7 7 7 . . . . . . . . . . . . . . . Core 2 | . . . . . 7 1 . . . 5 5 5 4 5 5 4 5 5 3 . . . . . Reactor 1 | . . . . . . . . . . . . . . . . . . . 1 5 4 4 3 . Treads 18 | . 14 14 14 14 20 27 23 23 23 23 17 16 10 12 17 15 21 21 21 19 15 13 11 . Wheel 1 | . 10 14 14 14 6 . . . . . . . . . . . . . . . . . . . Device 13 | . . . . . 18 18 12 6 7 6 16 15 16 17 17 22 26 26 24 21 19 13 12 . Storage 7 | . 14 14 14 14 9 9 7 7 7 6 5 5 5 5 5 5 5 5 5 5 4 8 11 . Processor 18 | . 5 14 14 14 9 9 15 21 23 22 23 29 24 15 11 14 15 15 15 15 19 17 19 26 Protection 7 | . 3 . . . 9 9 17 16 15 9 5 1 4 8 11 6 5 5 5 9 4 9 1 . Energy Gun 1 | . 9 . . . . 3 . . . 2 . . 1 . . . . . . . . 1 4 . Energy Cannon 3 | . 3 14 14 14 9 5 7 7 5 1 5 5 1 3 5 3 . . . . . 2 3 . Ballistic Gun 6 | . 14 14 14 14 2 . . . 5 11 5 5 5 7 5 15 21 20 9 9 7 . 1 . Ballistic Cannon 4 | . . . . . 1 7 6 7 3 3 3 4 5 . . . . . 10 7 8 10 2 . Naked Turns . | . . . . . . . . . . . . . . . . . . . . . . . . . Heaviest Build 119 | 11 29 27 27 27 41 48 62 62 54 59 67 59 60 70 69 79 61 67 80 80 95 109 119 2 Greatest Support 225 | 20 40 20 20 20 60 60 60 60 60 120 130 130 150 136 136 136 112 114 114 127 167 225 225 21 Greatest Overweight (x) 3 | . 2 2 2 2 3 . 1 1 . 1 . . . . . . . . . . . . . . Average Overweight (x) . | . 1 1 1 1 2 . . . . . . . . . . . . . . . . . . . Largest Inventory Capacity 25 | 8 25 15 15 15 15 15 15 15 15 15 15 15 15 15 15 15 15 15 15 15 15 15 20 5 Average Capacity 14 | 8 12 15 15 15 15 15 15 15 15 15 15 15 15 15 15 15 15 15 15 15 15 15 16 5 Most Carried 20 | 8 14 15 15 15 15 15 15 15 15 15 15 15 15 15 15 15 15 15 15 15 15 15 20 4 Average Carried 13 | 6 10 14 14 14 13 14 14 14 14 14 13 13 13 12 13 13 15 14 14 14 14 14 13 3 Final Capacity 15 | 8 15 15 15 15 15 15 15 15 15 15 15 15 15 15 15 15 15 15 15 15 15 15 5 5 Final Carried 15 | 8 14 15 15 15 15 14 15 15 14 15 12 15 15 13 13 15 15 14 15 15 11 13 4 1 Class Distribution -------------------- 29% | Scavenger-Mutant 18% | Scavenger-Skirmisher 16% | Scavenger-Gunner 15% | Mutant 13% | Gunner Dominant Class ---------------- Mutant | -10/Materials Mutant | -10/Mines Mutant | -10/Exiles Mutant | -9/Mines Mutant | -8/Materials Scavenger-Mutant | -8/Storage Mutant | -7/Factory Scavenger-Mutant | -7/Lower Caves Scavenger-Mutant | -7/Lower Caves Scavenger-Gunner | -6/Factory Gunner | -5/Factory Gunner | -5/Extension Scavenger-Gunner | -5/Cetus Scavenger-Mutant | -5/Archives Scavenger-Mutant | -5/Hub_04(d) Scavenger-Skirmisher | -4/Factory Scavenger-Skirmisher | -4/Upper Caves Scavenger-Skirmisher | -4/Upper Caves Scavenger-Skirmisher | -4/Zhirov Scavenger-Skirmisher | -3/Proximity Caves Scavenger-Gunner | -3/Research Scavenger-Assassin | -2/Research Scavenger-Gunner | -1/Access Scavenger-Mutant | -1/Command Resources | -11 -10 -10 -10 -9 -8 -8 -7 -7 -7 -6 -5 -5 -5 -5 -5 -4 -4 -4 -4 -3 -3 -2 -1 -1 ----------- Run | Scr Mat Min Exi Min Mat Sto Fac Low Low Fac Fac Ext Cet Arc Hub Fac Upp Upp Zhi Pro Res Res Acc Com Matter Collected 10619 | 203 201 54 . . 302 463 483 102 173 781 276 480 547 202 . 359 28 574 105 1234 1471 1330 1251 . Remotely . | . . . . . . . . . . . . . . . . . . . . . . . . . Salvage Created 13211 | 86 289 53 . . 404 756 707 226 163 802 205 803 600 351 . 540 . 866 105 458 1162 1757 2878 . Parts 692 | 6 22 7 . . 24 49 32 12 10 46 5 30 23 13 . 26 . 54 1 25 65 89 153 . Haulers Intercepted 7 | . 1 . . . 1 . 2 . . . . . . . . 3 . . . . . . . . Recyclers Shooed 14 | . 1 . . . 1 2 3 . . 1 . 1 . . . 1 . . . . 1 . 3 . Parts Field Recycled . | . . . . . . . . . . . . . . . . . . . . . . . . . Retrieved Matter . | . . . . . . . . . . . . . . . . . . . . . . . . . Parts Self-Destructed 107 | . . . . . . . . 10 17 . . . . . . . 4 51 1 24 . . . . Prevented 1 | . . . . . . . . . . . . . . . . . 1 . . . . . . . Kills | -11 -10 -10 -10 -9 -8 -8 -7 -7 -7 -6 -5 -5 -5 -5 -5 -4 -4 -4 -4 -3 -3 -2 -1 -1 ------- Run | Scr Mat Min Exi Min Mat Sto Fac Low Low Fac Fac Ext Cet Arc Hub Fac Upp Upp Zhi Pro Res Res Acc Com Combat Hostiles Destroyed 239 | . 9 3 . . 6 16 9 5 4 12 5 12 14 4 . 7 . 19 . 11 29 23 51 . Melee 4 | . . . . . . . . . . . . . . 1 . . . . . . . 2 1 . Guns 86 | . 6 1 . . 3 3 . . 3 10 1 4 9 1 . 4 . 18 . 5 5 3 10 . Cannons 112 | . 1 2 . . 3 9 9 5 1 1 4 8 5 2 . 3 . 1 . 4 15 18 21 . AOE 34 | . 2 . . . . 4 . . . 1 . . . . . . . . . 2 9 . 16 . Classes Destroyed 18 | 2 4 . . . 1 2 1 1 2 . . 1 1 . . 1 . . . 2 . . . . Worker 9 | . . . . . . 3 3 . . . . . . . . . . . . . 1 . 2 . Builder 5 | . . . . . . . . . . . . 1 . . . . . . . . 3 1 . . Tunneler 2 | 1 . . . . . . . . . . . . . . . . . . . . . 1 . . Hauler 7 | . 1 . . . 1 . 2 . . . . . . . . 3 . . . . . . . . Recycler 7 | 1 . . . . . 2 2 . . 1 . . . . . . . . . . . 1 . . Operator 2 | . . . . . . . . . . . . . . . . 1 . . . . 1 . . . Watcher 11 | . 3 . . . 1 . . . . 3 . 1 1 . . . . . . . . . 2 . Swarmer 50 | . 6 3 . . . 3 . . . . 2 . 4 . . 5 . 10 . . 6 . 11 . Grunt 64 | . 3 . . . 3 4 4 2 2 4 . 8 5 . . . . 5 . . 5 6 13 . Brawler 6 | . . . . . . 1 . 1 . . . . . . . . . . . . . . 4 . Duelist 2 | . . . . . . . . . 1 . 1 . . . . . . . . . . . . . Protector 5 | . . . . . . . . . . . . . . . . . . . . 4 . 1 . . Sentry 37 | . . . . . 3 8 4 . . 2 . 3 . 4 . 1 . 3 . 1 . 4 4 . Demolisher 4 | . . . . . . . . . . . . . . . . . . . . 4 . . . . Hunter 19 | . . . . . . . . . . . . . 1 . . . . . . 2 6 6 4 . Programmer 45 | . . . . . . . 1 2 . 6 2 . . . . 1 . . . . 12 6 15 . Cetus Guard 4 | . . . . . . . . . . . . . 4 . . . . . . . . . . . Tinkerer 1 | . . . . . . . . 1 . . . . . . . . . . . . . . . . Master Thief 2 | . . . . . . . . . 1 . . . . . . . . 1 . . . . . . Butcher 1 | . . . . . . . . . . . . 1 . . . . . . . . . . . . Best Kill Streak 10 | 2 3 3 . . 2 10 4 3 2 5 2 5 6 1 . 5 . 10 . 2 6 6 9 . Combat Bots Only 10 | . 3 3 . . 2 6 2 3 2 5 2 5 6 1 . 5 . 10 . 2 5 6 8 . Max Kills in Single Turn 3 | 1 1 1 . . 1 2 2 1 1 1 1 2 1 1 . 1 . 2 . 1 2 2 3 . Gunslinging 1 | . . . . . . . . . . . . . . . . . . 1 . . . . . . Exploded 3 | . 1 . . . . 1 . . . 1 . . . . . . . . . 1 2 . 3 . Melee 1 | . . . . . . . . . . . . . . 1 . . . . . . . 1 1 . Uniques/NPCs Destroyed 1 | . . . . . . . . . . . . 1 . . . . . . . . . . . . A7 (-5/Extension) Combat | -11 -10 -10 -10 -9 -8 -8 -7 -7 -7 -6 -5 -5 -5 -5 -5 -4 -4 -4 -4 -3 -3 -2 -1 -1 -------- Run | Scr Mat Min Exi Min Mat Sto Fac Low Low Fac Fac Ext Cet Arc Hub Fac Upp Upp Zhi Pro Res Res Acc Com Damage Taken 24464 | . 405 81 . . 186 857 649 126 378 1141 652 717 2294 1428 20 424 . 1400 . 780 2387 2023 7074 1442 Core 2801 | . 7 . . . 31 61 74 14 38 68 41 116 158 66 . . . 44 . 101 227 142 476 1137 Absorbed by Shields 142 | . . . . . . . . . . . 28 114 . . . . . . . . . . . . Reduced by Siege Mode 379 | . . . . . . . . . . . . . . . . . . . . . 84 96 199 . Core Remaining (%) 85 | 100 . . . 97 . 83 . . 82 92 . . . . 61 . . . . 81 82 90 . . Volleys Fired 716 | 3 43 7 . . 46 63 50 12 26 41 16 35 34 18 . 26 . 37 . 36 58 51 114 . Largest 4 | 2 2 2 . . 2 2 2 2 2 3 3 3 3 3 . 4 . 4 . 4 4 4 4 . Hottest 402 | 60 80 80 . . 104 124 119 123 123 151 166 171 224 184 . 214 . 184 . 184 241 332 402 . Shots Fired 1759 | 6 85 14 . . 62 89 91 24 49 124 46 97 96 46 . 60 . 145 . 80 171 167 307 . Gun 804 | 6 71 7 . . 12 9 . . 14 89 27 31 41 33 . 49 . 143 . 36 44 40 152 . Cannon 828 | . 14 7 . . 20 57 82 24 35 35 19 66 55 13 . 11 . 2 . 26 110 127 125 . Launcher 77 | . . . . . 1 11 . . . . . . . . . . . . . 18 17 . 30 . Special 50 | . . . . . 29 12 9 . . . . . . . . . . . . . . . . . Kinetic 1057 | 3 43 7 . . 16 36 41 12 27 94 32 66 71 31 . 49 . 145 . 62 154 89 79 . Thermal 437 | . 14 7 . . 45 42 50 12 22 19 7 31 21 6 . 9 . . . . . 78 74 . Explosive 77 | . . . . . 1 11 . . . . . . . . . . . . . 18 17 . 30 . Electromagnetic 188 | 3 28 . . . . . . . . 11 7 . 4 9 . 2 . . . . . . 124 . Robot Hit Streak 46 | 4 14 2 . . 13 18 35 16 31 33 21 22 23 26 . 39 . 46 . 16 26 25 15 . Robot Miss Streak 7 | 2 4 4 . . 1 1 3 1 2 7 4 1 3 2 . 1 . 3 . 3 3 3 5 . Penetration Max 1 | . . . . . . . . . 1 . 1 1 1 1 . . . 1 . . 1 1 . . Secondary Targets 8 | . 2 . . . . . . . 1 . . . . . . . . 5 . . . . . . Max Gunslinging Chain 1 | . 1 . . . . . . . 1 . . . . . . . . 1 . . . . . . Shots Hit Robots 1225 | 4 52 5 . . 23 40 62 20 36 99 28 75 72 43 . 50 . 98 9 50 117 115 225 2 Core Hits 649 | 3 19 5 . . 14 34 24 11 12 55 9 28 67 24 . 20 . 34 1 35 69 51 132 2 Critical Hits 169 | . . . . . . . 1 3 2 4 4 14 7 4 . 6 . 18 1 13 27 34 31 . Critical Kills 71 | . . . . . . . . . . 1 . 5 3 1 . . . 7 . 8 14 15 17 . Critical Parts Destroyed 88 | . . . . . . . 1 3 2 2 4 8 3 3 . 6 . 9 . 4 13 16 14 . Melee Attacks 86 | . 3 . . . . . . . . 8 7 8 10 1 . . . 1 9 2 . 16 12 9 Impact 34 | . . . . . . . . . . 8 7 8 10 1 . . . . . . . . . . Slashing 52 | . 3 . . . . . . . . . . . . . . . . 1 9 2 . 16 12 9 Piercing . | . . . . . . . . . . . . . . . . . . . . . . . . . Sneak Attacks 3 | . . . . . . . . . . . . . . . . . . . . . . 2 . 1 Combat Hostiles . | . . . . . . . . . . . . . . . . . . . . . . . . . Follow-up Attacks . | . . . . . . . . . . . . . . . . . . . . . . . . . Damage Inflicted 40107 | 39 1061 97 . . 483 1509 1538 547 899 2052 824 2164 2034 1112 . 1413 . 2435 942 1828 5469 3998 9495 168 Guns 13709 | 39 425 25 . . 103 202 . . 301 1521 355 771 713 781 . 1176 . 2401 . 492 1090 896 2418 . Cannons 15126 | . 157 72 . . 366 750 1514 542 598 469 455 1392 1321 309 . 206 . 34 . 188 1720 2641 2392 . Explosions 9590 | . 479 . . . 14 557 . . . 62 . . . . . 31 . . . 1148 2648 . 4651 . Melee 1571 | . . . . . . . . . . . . . . 22 . . . . 942 . . 452 . 155 Ramming 87 | . . . . . . . . 5 . . 14 1 . . . . . . . . 11 9 34 13 Kinetic 17422 | 14 169 25 . . 124 347 634 278 499 1335 458 1422 1447 857 . 1176 . 2435 . 680 2810 1606 1106 . Thermal 9287 | . 636 72 . . 345 605 904 264 400 492 213 741 526 97 . 205 . . . . . 1931 1856 . Explosive 9018 | . . . . . 14 557 . . . . . . . . . . . . . 1148 2648 . 4651 . Electromagnetic 2722 | 25 256 . . . . . . . . 225 139 . 61 136 . 32 . . . . . . 1848 . Impact 22 | . . . . . . . . . . . . . . 22 . . . . . . . . . . Slashing 1549 | . . . . . . . . . . . . . . . . . . . 942 . . 452 . 155 Piercing . | . . . . . . . . . . . . . . . . . . . . . . . . . Highest Corruption 31 | . . . . . . 1 1 1 1 8 1 1 1 1 1 1 1 1 1 1 5 3 23 31 Average Corruption 3 | . . . . . . 1 1 1 1 4 1 1 1 1 1 1 1 1 1 1 2 2 14 23 Corruption Purged 10 | . . . . . . . . . . . . . . . . . . . . . 6 . 4 . Effects 225 | . . . . . . 2 5 8 7 37 1 9 3 1 1 1 4 3 2 4 18 10 80 29 Message Errors 66 | . . . . . . . 3 4 4 12 1 3 . 1 . 1 3 1 1 2 6 3 18 3 Matter Fused 32 | . . . . . . . . . . 13 . . . . . . . . . . . 1 15 3 Heat Flow Errors 20 | . . . . . . . . . . 3 . . . . . . . . . . 5 2 8 2 Energy Discharges 26 | . . . . . . 1 1 2 2 4 . 2 . . 1 . 1 2 1 . 1 . 7 1 Parts Rejected 1 | . . . . . . . . . . . . . . . . . . . . . . . 1 . Data Loss (minor) 27 | . . . . . . 1 1 2 1 2 . 4 2 . . . . . . 2 4 1 7 . Data Loss (major) 7 | . . . . . . . . . . . . . . . . . . . . . 2 . 4 1 Misfires 5 | . . . . . . . . . . 2 . . . . . . . . . . . . 3 . Alerts 3 | . . . . . . . . . . . . . . . . . . . . . . . 2 1 Misdirections 29 | . . . . . . . . . . . . . . . . . . . . . . . 11 18 Weapon Failures 9 | . . . . . . . . . . 1 . . 1 . . . . . . . . 3 4 . Overload Shots . | . . . . . . . . . . . . . . . . . . . . . . . . . Overflow Damage 893 | . 46 16 . . . 38 38 . 20 6 4 42 . . . 11 . . 121 . 175 22 277 77 Projectiles 358 | . 9 16 . . . 22 38 . 20 6 4 42 . . . 11 . . . . 63 22 105 . Explosions 337 | . 37 . . . . 16 . . . . . . . . . . . . . . 112 . 172 . Melee 198 | . . . . . . . . . . . . . . . . . . . 121 . . . . 77 Knockbacks 59 | . . . . . . 1 3 4 5 1 1 6 . . . . . . . 2 14 16 6 . Impact 2 | . . . . . . . . 1 . . . . . . . . . . . . . . 1 . Kinetic 55 | . . . . . . 1 3 3 5 1 1 6 . . . . . . . 2 14 14 5 . Secondary 2 | . . . . . . . . . . . . . . . . . . . . . . 2 . . Self-Inflicted Damage 494 | . 162 . . . . 80 . . . . . . . . . . . . . . 99 . 147 6 Shots 11 | . 3 . . . . 2 . . . . . . . . . . . . . . 1 . 5 . Rammed 13 | . . . . . . . . 1 . . 5 1 . . . . . . . . 1 2 1 2 Targets Rammed 14 | . . . . . . . . 1 . . 5 1 . . . . . . . . 1 2 2 2 Kicked . | . . . . . . . . . . . . . . . . . . . . . . . . . Crushed 1 | . . . . . . . . . . . . . . . . . . . . . . . 1 . Highest Temperature 438 | 20 101 120 . . 7 96 186 117 246 415 345 188 298 63 . 367 . . . . 165 438 409 114 Average Temperature 78 | 15 39 48 . . 4 31 63 43 120 90 145 40 100 22 . 108 . . . . 42 131 80 66 Received Heat Transfer 2677 | . 57 . . . 63 243 276 27 54 210 . 232 498 198 9 27 . 186 . 18 75 234 234 36 Effects 3 | . . . . . . . . . . . . . 3 . . . . . . . . . . . Interference 3 | . . . . . . . . . . . . . 3 . . . . . . . . . . . Siege Activations 19 | . . . . . . . . . . . . . . . . . . . . . 3 5 11 . Total Turns 307 | . . . . . . . . . . . . . . . . . . . . . 45 68 194 . Longest Duration 38 | . . . . . . . . . . . . . . . . . . . . . 16 28 38 . Robots Corrupted 3 | . . . . . . . . . . . . . . . . . . . . . . . 3 . Combat Hostiles 3 | . . . . . . . . . . . . . . . . . . . . . . . 3 . Parts Fried 12 | . 1 . . . . . . . . 1 2 . . . . . . . . . . . 8 . Impact Corruptions . | . . . . . . . . . . . . . . . . . . . . . . . . . Robots Melted . | . . . . . . . . . . . . . . . . . . . . . . . . . Combat Hostiles . | . . . . . . . . . . . . . . . . . . . . . . . . . Parts Melted 9 | . . . . . . 1 1 1 . . . . . . . . . . . . . 4 2 . Heat Transferred 11713 | . 783 148 . . 555 1054 1308 370 592 1000 222 869 666 211 . 235 . . . . . 1850 1850 . Parts Sabotaged 2 | . . . . . . . . . . . . . . . . . . . . . . 2 . . Parts Stolen 6 | . . . . . . . . . 4 . . . . . . . . 2 . . . . . . Parts Stripped . | . . . . . . . . . . . . . . . . . . . . . . . . . Power Chain Reactions 3 | . 2 . . . . . . . . 1 . . . . . . . . . . . . . . Missiles Intercepted . | . . . . . . . . . . . . . . . . . . . . . . . . . Alert | -11 -10 -10 -10 -9 -8 -8 -7 -7 -7 -6 -5 -5 -5 -5 -5 -4 -4 -4 -4 -3 -3 -2 -1 -1 ------- Run | Scr Mat Min Exi Min Mat Sto Fac Low Low Fac Fac Ext Cet Arc Hub Fac Upp Upp Zhi Pro Res Res Acc Com Peak Influence 1602 | 10 238 145 . . 160 410 312 . . 130 83 418 377 214 8 285 . . . . 711 949 1602 1374 Initial 1024 | . 6 60 . . . 20 186 . . 21 37 27 198 110 4 3 . . . . 16 399 568 1024 Average 271 | 9 100 104 . . 48 207 198 . . 29 26 191 283 187 5 166 . . . . 155 507 922 1187 Maximum Alert Level 5 | . 1 . . . . 2 1 . . . . 2 1 1 . 1 . . . . 3 3 5 4 Low Security (%) 58 | 100 95 100 . 100 100 50 53 . . 100 100 49 15 45 100 65 . . . . 71 . . . Level 1 18 | . 4 . . . . 47 46 . . . . 36 84 54 . 34 . . . . 16 19 . . Level 2 11 | . . . . . . 1 . . . . . 13 . . . . . . . . 10 65 31 . Level 3 7 | . . . . . . . . . . . . . . . . . . . . . 1 15 44 26 Level 4 4 | . . . . . . . . . . . . . . . . . . . . . . . 24 73 Level 5 . | . . . . . . . . . . . . . . . . . . . . . . . . . High Security . | . . . . . . . . . . . . . . . . . . . . . . . . . Max Security . | . . . . . . . . . . . . . . . . . . . . . . . . . Squads Dispatched 60 | . 4 . . . 2 . 3 . . 8 2 3 . . . 1 . . . . 10 10 16 1 Investigation 11 | . 2 . . . 1 . . . . . . 2 . . . . . . . . 2 1 3 . Extermination 20 | . . . . . . . 2 . . 5 1 . . . . . . . . . 4 3 5 . Reinforcement 13 | . 2 . . . 1 . 1 . . . 1 1 . . . 1 . . . . 3 3 . . Assault 6 | . . . . . . . . . . . . . . . . . . . . . . 3 2 1 Garrison 10 | . . . . . . . . . . 3 . . . . . . . . . . 1 . 6 . Intercept . | . . . . . . . . . . . . . . . . . . . . . . . . . Construction Impeded 6 | . . . . . . . . . . . 1 1 . . . . . . . . 1 3 . . Haulers Reinforced . | . . . . . . . . . . . . . . . . . . . . . . . . . Stealth | -11 -10 -10 -10 -9 -8 -8 -7 -7 -7 -6 -5 -5 -5 -5 -5 -4 -4 -4 -4 -3 -3 -2 -1 -1 --------- Run | Scr Mat Min Exi Min Mat Sto Fac Low Low Fac Fac Ext Cet Arc Hub Fac Upp Upp Zhi Pro Res Res Acc Com Distress Signals 33 | . . . . . 1 . . . . . . . 2 . . 2 . . . 22 . 4 2 . Communications Jammed . | . . . . . . . . . . . . . . . . . . . . . . . . . Distress Signals . | . . . . . . . . . . . . . . . . . . . . . . . . . Times Spotted 406 | . 22 3 . . 11 24 14 4 9 18 6 34 18 9 1 12 3 25 . 13 38 47 72 23 Peak Tracking Total 11 | . 3 3 . . 2 7 3 3 5 4 3 5 5 2 1 5 3 9 . 2 7 11 11 9 Tactical Retreats 44 | . 2 . . . 2 4 3 . 1 . . 9 . . . 2 . 3 . 1 3 6 3 5 Traps | -11 -10 -10 -10 -9 -8 -8 -7 -7 -7 -6 -5 -5 -5 -5 -5 -4 -4 -4 -4 -3 -3 -2 -1 -1 ------- Run | Scr Mat Min Exi Min Mat Sto Fac Low Low Fac Fac Ext Cet Arc Hub Fac Upp Upp Zhi Pro Res Res Acc Com Traps Triggered 12 | . . . . . . 2 . . . . 5 . . . 1 . . . . . 1 1 2 . Indirectly . | . . . . . . . . . . . . . . . . . . . . . . . . . Trap Hack Attempts . | . . . . . . . . . . . . . . . . . . . . . . . . . Triggered . | . . . . . . . . . . . . . . . . . . . . . . . . . Disarmed . | . . . . . . . . . . . . . . . . . . . . . . . . . Reprogrammed . | . . . . . . . . . . . . . . . . . . . . . . . . . Reused . | . . . . . . . . . . . . . . . . . . . . . . . . . Traps Reconfigurated 1 | . . . . . . . 1 . . . . . . . . . . . . . . . . . Traps Extracted . | . . . . . . . . . . . . . . . . . . . . . . . . . Installed . | . . . . . . . . . . . . . . . . . . . . . . . . . Triggered 2 | . . . . . . . . . . . . . . . . . 2 . . . . . . . Machines | -11 -10 -10 -10 -9 -8 -8 -7 -7 -7 -6 -5 -5 -5 -5 -5 -4 -4 -4 -4 -3 -3 -2 -1 -1 ---------- Run | Scr Mat Min Exi Min Mat Sto Fac Low Low Fac Fac Ext Cet Arc Hub Fac Upp Upp Zhi Pro Res Res Acc Com Machines Disabled 42 | . 4 . . . . 6 1 1 . 1 1 5 3 3 . 4 . 2 . 4 2 4 1 . Max in Single Turn 2 | . 1 . . . . 1 1 1 . 1 1 1 1 2 . 2 . 1 . 1 1 1 1 . Garrison Access 1 | . . . . . 1 . . . . . . . . . . . . . . . . . . . Machines Sabotaged . | . . . . . . . . . . . . . . . . . . . . . . . . . Garrisons Compromised . | . . . . . . . . . . . . . . . . . . . . . . . . . Overloaded Fab Kills . | . . . . . . . . . . . . . . . . . . . . . . . . . Fab Network Shutdowns . | . . . . . . . . . . . . . . . . . . . . . . . . . Hacking | -11 -10 -10 -10 -9 -8 -8 -7 -7 -7 -6 -5 -5 -5 -5 -5 -4 -4 -4 -4 -3 -3 -2 -1 -1 --------- Run | Scr Mat Min Exi Min Mat Sto Fac Low Low Fac Fac Ext Cet Arc Hub Fac Upp Upp Zhi Pro Res Res Acc Com Machines Accessed 70 | . 6 . 2 . 4 9 . 1 2 4 4 7 2 1 2 . 1 2 9 . 5 3 6 . Terminals 43 | . 6 . . . 2 7 . . . 1 4 6 2 . 1 . . 1 . . 4 3 6 . Fabricators 1 | . . . . . . . . . . . . . . . . . . . . . 1 . . . Repair Stations 4 | . . . . . . 1 . . . 2 . 1 . . . . . . . . . . . . Recycling Units 2 | . . . . . . 1 . . . 1 . . . . . . . . . . . . . . Scanalyzers 1 | . . . . . 1 . . . . . . . . . . . . . . . . . . . Garrison Access 2 | . . . . . 1 . . . . . . . . . 1 . . . . . . . . . Total Hacks 232 | . 21 . 2 . 13 29 . 2 2 7 9 17 7 25 7 . 6 6 48 . 13 6 12 . Successful 155 | . 8 . 2 . 9 15 . 2 2 1 3 9 5 25 3 . 6 6 48 . 3 5 3 . Failed 77 | . 13 . . . 4 14 . . . 6 6 8 2 . 4 . . . . . 10 1 9 . Catastrophic 10 | . 1 . . . . 2 . . . 1 1 1 . . 1 . . . . . 2 . 1 . Database Lockouts . | . . . . . . . . . . . . . . . . . . . . . . . . . Manual 71 | . 16 . 1 . 4 22 . 2 . 1 2 6 3 2 . . 1 . . . 2 4 5 . Terminals 125 | . 21 . . . 9 25 . . . 1 9 15 7 . 3 . . 5 . . 12 6 12 . Fabricators 1 | . . . . . . . . . . . . . . . . . . . . . 1 . . . Repair Stations 9 | . . . . . . 2 . . . 5 . 2 . . . . . . . . . . . . Recycling Units 3 | . . . . . . 2 . . . 1 . . . . . . . . . . . . . . Scanalyzers 3 | . . . . . 3 . . . . . . . . . . . . . . . . . . . Garrison Access 5 | . . . . . 1 . . . . . . . . . 4 . . . . . . . . . Terminal Hacks 124 | . 3 . 2 . 3 5 . 2 2 . 2 5 5 25 3 . 6 6 48 . 2 2 3 . Record 85 | . . . 1 . 1 . . 2 1 . . . 4 25 2 . 6 5 36 . . 2 . . Part Schematic 5 | . . . . . . 1 . . . . . . . . . . . . 4 . . . . . Robot Analysis 8 | . . . . . 1 3 . . . . . . . . . . . . 4 . . . . . Prototype ID Bank 4 | . . . . . . . . . . . . . . . . . . . 4 . . . . . Open Door 11 | . . . . . . 1 . . 1 . 1 3 1 . . . . 1 . . . . 3 . Emergency Access Points 2 | . 1 . . . . . . . . . . . . . 1 . . . . . . . . . Alert Level 3 | . . . . . 1 . . . . . 1 1 . . . . . . . . . . . . Unreport Threat 1 | . . . . . . . . . . . . . . . . . . . . . 1 . . . Dispatch Records 1 | . 1 . . . . . . . . . . . . . . . . . . . . . . . Investigation Status 1 | . . . . . . . . . . . . 1 . . . . . . . . . . . . Recall Extermination 1 | . . . . . . . . . . . . . . . . . . . . . 1 . . . Hauler Manifests 1 | . 1 . . . . . . . . . . . . . . . . . . . . . . . EX-Prototype ID Bank 1 | . . . 1 . . . . . . . . . . . . . . . . . . . . . Fabricator Hacks 1 | . . . . . . . . . . . . . . . . . . . . . 1 . . . Build 1 | . . . . . . . . . . . . . . . . . . . . . 1 . . . Repair Station Hacks 5 | . . . . . . 2 . . . 1 . 2 . . . . . . . . . . . . Scan Component 3 | . . . . . . 1 . . . 1 . 1 . . . . . . . . . . . . Repair 2 | . . . . . . 1 . . . . . 1 . . . . . . . . . . . . Recycling Unit Hacks 1 | . . . . . . 1 . . . . . . . . . . . . . . . . . . Retrieve Components 1 | . . . . . . 1 . . . . . . . . . . . . . . . . . . Scanalyzer 3 | . . . . . 3 . . . . . . . . . . . . . . . . . . . Insert Component 2 | . . . . . 2 . . . . . . . . . . . . . . . . . . . Analyze 1 | . . . . . 1 . . . . . . . . . . . . . . . . . . . Garrison Access Hacks 1 | . . . . . 1 . . . . . . . . . . . . . . . . . . . Seal Access 1 | . . . . . 1 . . . . . . . . . . . . . . . . . . . Unauthorized Hacks 20 | . 5 . . . 2 7 . . . . 1 2 . . . . . . . . . 3 . . Terminals 20 | . 5 . . . 2 7 . . . . 1 2 . . . . . . . . . 3 . . Track 3 | . 2 . . . . 1 . . . . . . . . . . . . . . . . . . Botnet 16 | . 3 . . . 2 5 . . . . 1 2 . . . . . . . . . 3 . . Operators 1 | . . . . . . 1 . . . . . . . . . . . . . . . . . . Fabricators . | . . . . . . . . . . . . . . . . . . . . . . . . . Repair Stations . | . . . . . . . . . . . . . . . . . . . . . . . . . Recycling Units . | . . . . . . . . . . . . . . . . . . . . . . . . . Scanalyzers . | . . . . . . . . . . . . . . . . . . . . . . . . . Garrison Access . | . . . . . . . . . . . . . . . . . . . . . . . . . Data Cores Recovered 2 | . . . . . . . . . . . . 1 . . . . . . . . 1 . . . Used 2 | . . . . . . . . . . . . 1 . . . . . . . . 1 . . . Hacking Detections 45 | . 6 . . . 3 8 . . . 4 3 4 2 . 2 . . . . . 5 3 5 . Full Trace Events 9 | . 2 . . . 1 . . . . . . 2 . . . . . . . . 2 . 2 . Feedback Events 1 | . . . . . . . . . . . . . . . . . . . . . 1 . . . Corruption 1 | . . . . . . . . . . . . . . . . . . . . . 1 . . . Feedback Blocked . | . . . . . . . . . . . . . . . . . . . . . . . . . Robot Schematics Acquired . | . . . . . . . . . . . . . . . . . . . . . . . . . Robots Built 2 | . . . . . . . . . . . . . . . . . . . . . 2 . . . Matter 285 | . . . . . . . . . . . . . . . . . . . . . 285 . . . Time 76 | . . . . . . . . . . . . . . . . . . . . . 76 . . . Total Robot Build Rating 10 | . . . . . . . . . . . . . . . . . . . . . 10 . . . Part Schematics Acquired 6 | . . . . . 1 1 . . . . . . . . . . . . 4 . . . . . Parts Built . | . . . . . . . . . . . . . . . . . . . . . . . . . Matter . | . . . . . . . . . . . . . . . . . . . . . . . . . Time . | . . . . . . . . . . . . . . . . . . . . . . . . . Total Part Build Rating . | . . . . . . . . . . . . . . . . . . . . . . . . . Parts Repaired 2 | . . . . . . 1 . . . . . 1 . . . . . . . . . . . . Time 54 | . . . . . . 26 . . . . . 28 . . . . . . . . . . . . Parts Recycled . | . . . . . . . . . . . . . . . . . . . . . . . . . Recycled Matter . | . . . . . . . . . . . . . . . . . . . . . . . . . Retrieved Matter . | . . . . . . . . . . . . . . . . . . . . . . . . . Retrieved Components 10 | . . . . . . 10 . . . . . . . . . . . . . . . . . . Parts Scanalyzed 1 | . . . . . 1 . . . . . . . . . . . . . . . . . . . Part Schematics Acquired 1 | . . . . . 1 . . . . . . . . . . . . . . . . . . . Parts Damaged . | . . . . . . . . . . . . . . . . . . . . . . . . . Bothacking | -11 -10 -10 -10 -9 -8 -8 -7 -7 -7 -6 -5 -5 -5 -5 -5 -4 -4 -4 -4 -3 -3 -2 -1 -1 ------------ Run | Scr Mat Min Exi Min Mat Sto Fac Low Low Fac Fac Ext Cet Arc Hub Fac Upp Upp Zhi Pro Res Res Acc Com Used RIF Installer . | . . . . . . . . . . . . . . . . . . . . . . . . . Robots Hacked . | . . . . . . . . . . . . . . . . . . . . . . . . . Non-combat . | . . . . . . . . . . . . . . . . . . . . . . . . . Combat . | . . . . . . . . . . . . . . . . . . . . . . . . . Robot Hacks Applied . | . . . . . . . . . . . . . . . . . . . . . . . . . Relay Couplers Released . | . . . . . . . . . . . . . . . . . . . . . . . . . Robots Rewired . | . . . . . . . . . . . . . . . . . . . . . . . . . Allies Hacked . | . . . . . . . . . . . . . . . . . . . . . . . . . Hacks Repelled . | . . . . . . . . . . . . . . . . . . . . . . . . . Allies | -11 -10 -10 -10 -9 -8 -8 -7 -7 -7 -6 -5 -5 -5 -5 -5 -4 -4 -4 -4 -3 -3 -2 -1 -1 -------- Run | Scr Mat Min Exi Min Mat Sto Fac Low Low Fac Fac Ext Cet Arc Hub Fac Upp Upp Zhi Pro Res Res Acc Com Total Allies 8 | . . . . 1 . . . . . . . 3 . . . . 2 . . . 2 . . . Largest Group 3 | . . . . 1 1 . . . . . . 3 . . . . 2 . . . 2 . . . Highest-Rated Group 224 | . . . . 31 31 . . . . . . 224 . . . . 76 . . . 28 . . . Highest-Rated Ally 156 | . . . . 31 31 . . . . . . 156 . . . . 38 . . . 14 . . . Total Orders 1 | . . . . . . . . . . . . . . . . . . . . . 1 . . . FOLLOW 1 | . . . . . . . . . . . . . . . . . . . . . 1 . . . Ally Attacks 94 | . . . . . 20 . . . . . . 65 . . . . 8 . . . 1 . . . Total Damage 1637 | . . . . . 292 . . . . . . 1082 . . . . 263 . . . . . . . Kills 13 | . . . . . 4 . . . . . . 8 . . . . 1 . . . . . . . Allies Corrupted . | . . . . . . . . . . . . . . . . . . . . . . . . . Allies Melted 1 | . . . . . . . . . . . . . . . . . 1 . . . . . . . Intel | -11 -10 -10 -10 -9 -8 -8 -7 -7 -7 -6 -5 -5 -5 -5 -5 -4 -4 -4 -4 -3 -3 -2 -1 -1 ------- Run | Scr Mat Min Exi Min Mat Sto Fac Low Low Fac Fac Ext Cet Arc Hub Fac Upp Upp Zhi Pro Res Res Acc Com Robot Analysis Total 8 | . . . . . 1 3 . . . . . . . . . . . . 4 . . . . . Derelict Logs Recovered 5 | . . . . . . . . 1 1 . . . . . . . 1 2 . . . . . . Drone Launches . | . . . . . . . . . . . . . . . . . . . . . . . . . Drone Recoveries . | . . . . . . . . . . . . . . . . . . . . . . . . . Exploration | -11 -10 -10 -10 -9 -8 -8 -7 -7 -7 -6 -5 -5 -5 -5 -5 -4 -4 -4 -4 -3 -3 -2 -1 -1 ------------- Run | Scr Mat Min Exi Min Mat Sto Fac Low Low Fac Fac Ext Cet Arc Hub Fac Upp Upp Zhi Pro Res Res Acc Com Turns Passed 26730 | 51 967 154 568 100 1322 1591 1062 2005 1463 2777 1017 2066 546 400 248 493 873 1235 543 1564 1676 1371 2265 373 Spaces Moved 14101 | 33 595 106 330 69 501 715 482 1123 807 1327 471 1037 235 172 148 225 524 660 311 863 786 677 1095 809 Core 200 | . . . . . . . . . . . . . . . . . . . . . . . 72 128 Treads 11989 | . 82 7 134 13 167 715 482 1123 807 1327 471 1037 235 172 148 225 524 660 311 863 786 677 1023 . Legs 119 | 33 86 . . . . . . . . . . . . . . . . . . . . . . . Wheels 1112 | . 427 99 196 56 334 . . . . . . . . . . . . . . . . . . . Hover . | . . . . . . . . . . . . . . . . . . . . . . . . . Flight 681 | . . . . . . . . . . . . . . . . . . . . . . . . 681 Fastest Speed 34 | 120 95 110 110 110 125 160 160 163 163 160 160 160 160 160 160 160 160 160 160 160 157 145 50 34 Average Speed 150 | 120 124 119 170 138 136 160 167 172 163 161 160 160 160 160 160 160 160 160 160 162 161 145 139 40 Slowest Speed 263 | 120 260 260 260 260 160 160 263 263 163 260 160 160 160 160 160 160 160 160 160 163 170 161 153 50 Overloaded Moves . | . . . . . . . . . . . . . . . . . . . . . . . . . Propulsion Burnouts . | . . . . . . . . . . . . . . . . . . . . . . . . . Robots Hopped . | . . . . . . . . . . . . . . . . . . . . . . . . . Cave-ins Triggered 1 | . . . . . . . . . . . . . . . . . . . . . . . 1 . Teleports 1 | . . . . . . . . . . . . . . . . . . . 1 . . . . . Exploration Rate (%) 48 | 4 91 28 63 16 36 79 10 91 90 26 11 68 85 98 16 6 68 65 62 83 27 20 30 32 Regions Visited 24 Branch Regions 15 Pre-discovered Areas 5 | . . . . . . . . 1 . . . . . . . . . 1 3 . . . . . Known Exits Taken 18 | . 1 1 1 1 1 1 . . . 1 1 1 1 1 1 1 1 1 1 1 1 . . . Unknown Exits Taken 6 | 1 . . . . . . 1 1 1 . . . . . . . . . . . . 1 1 . Scrap Searched 13 | . . 1 . . . . . 2 3 . . . . . . . 1 2 . 4 . . . . Spaces Dug 84 | . . . . . 27 10 . . . 8 7 . . . . . . . . . . 18 9 5 Terrain Destroyed 845 | . 36 . . . 40 127 1 1 5 18 11 7 1 2 . 21 . 42 . 39 203 50 236 5 Melee 33 | . . . . . . . . . . 8 7 . . . . . . . . . . 7 6 5 Projectile 227 | . . . . . 29 15 1 1 5 5 4 7 1 2 . 17 . 42 . 1 46 43 8 . AOE 585 | . 36 . . . 11 112 . . . 5 . . . . . 4 . . . 38 157 . 222 . Terrain Rammed . | . . . . . . . . . . . . . . . . . . . . . . . . . Walls Destroyed . | . . . . . . . . . . . . . . . . . . . . . . . . . Machines Disabled . | . . . . . . . . . . . . . . . . . . . . . . . . . Actions | -11 -10 -10 -10 -9 -8 -8 -7 -7 -7 -6 -5 -5 -5 -5 -5 -4 -4 -4 -4 -3 -3 -2 -1 -1 --------- Run | Scr Mat Min Exi Min Mat Sto Fac Low Low Fac Fac Ext Cet Arc Hub Fac Upp Upp Zhi Pro Res Res Acc Com Total 18094 | 39 738 120 336 74 1019 1045 632 1166 906 1861 685 1361 315 259 159 311 560 746 347 961 1072 934 1602 846 Wait 2464 | 2 57 5 . 1 422 218 63 20 62 412 161 266 4 51 7 21 33 31 6 33 164 138 275 12 Move 14077 | 32 594 105 329 68 500 714 481 1122 806 1326 470 1036 234 171 147 224 523 659 310 862 785 676 1094 809 Hop . | . . . . . . . . . . . . . . . . . . . . . . . . . Pick Up 175 | 2 11 1 3 2 13 10 8 2 6 19 3 7 10 6 2 12 2 7 4 2 8 11 22 2 Fast Attach 86 | . 2 . . . 1 3 1 2 . 7 6 1 2 2 . 7 . . 5 4 14 4 20 5 Attach 119 | . 4 . . . 7 6 7 . 3 5 7 2 10 8 1 6 . 5 2 3 8 7 25 3 Detach 22 | . 1 . . . 2 . 1 . . 1 . . . . . 1 . . 1 4 5 5 . 1 Swap 153 | . 14 1 1 1 14 18 11 1 1 20 6 3 9 . 1 3 . 3 4 8 7 12 15 . Drop 179 | . 9 1 3 2 14 13 10 4 2 22 4 2 2 2 1 11 2 3 6 6 22 12 23 3 Fire 716 | 3 43 7 . . 46 63 50 12 26 41 16 35 34 18 . 26 . 37 . 36 58 51 114 . Melee 86 | . 3 . . . . . . . . 8 7 8 10 1 . . . 1 9 2 . 16 12 9 Ram 2 | . . . . . . . . . . . . . . . . . . . . . . . . 2 Kick . | . . . . . . . . . . . . . . . . . . . . . . . . . Crush 12 | . . . . . . . . 1 . . 5 1 . . . . . . . . 1 2 2 . Escape Stasis . | . . . . . . . . . . . . . . . . . . . . . . . . . Rewire 3 | . . . . . . . . 2 . . . . . . . . . . . 1 . . . . Trap . | . . . . . . . . . . . . . . . . . . . . . . . . . Miscellaneous . | . . . . . . . . . . . . . . . . . . . . . . . . . Route ------- -11/Scrapyard -10/Materials (discovered 5 exits: *Mat x3 / *Min x2) -10/Mines (discovered 2 exits: *Mat / *Exi) -10/Exiles (discovered 2 exits: *Min x2) -9/Mines -8/Materials (discovered 2 exits: *Fac / *Sto) -8/Storage -7/Factory -7/Lower Caves -7/Lower Caves (discovered 2 exits: *Fac / [*Zio]) -6/Factory -5/Factory -5/Extension (discovered 3 exits: *Fac x2 / *Cet) -5/Cetus -5/Archives (discovered 3 exits: *Fac / *Hub x2) -5/Hub_04(d) -4/Factory -4/Upper Caves -4/Upper Caves (discovered 2 exits: *Res / *Zhi) -4/Zhirov -3/Proximity Caves -3/Research (discovered 3 exits: *Res x2 / *Qua) -2/Research -1/Access -1/Command History --------- Turn | Location | Event 10 | -11/Scrapyard | Discovered new exit (range 3) 52 | -11/Scrapyard | Entered Materials 61 | -10/Materials | Discovered new exit (range 16) 266 | -10/Materials | Discovered new exit (range 16) 301 | -10/Materials | Discovered new exit (range 9) 335 | -10/Materials | Build established: Mutant 547 | -10/Materials | Discovered new exit (range 16) 604 | -10/Materials | Identified exit to Materials 844 | -10/Materials | Discovered exit to Materials (range 5) 1010 | -10/Materials | Identified exit to Mines 1019 | -10/Materials | Entered Mines 1148 | -10/Mines | Discovered exit to Materials (range 8) 1168 | -10/Mines | Deemed a non-threat by the Exiles lab entrance 1168 | -10/Mines | Discovered new exit (range 5) 1171 | -10/Mines | Identified exit to Exiles 1173 | -10/Mines | Entered Exiles 1188 | -10/Exiles | Discovered new exit (range 15) 1202 | -10/Exiles | Identified exit to Mines 1225 | -10/Exiles | Met 8R-AWN 1250 | -10/Exiles | Met EX-HEX 1311 | -10/Exiles | Met EX-BIN 1330 | -10/Exiles | Aligned with FarCom system 1331 | -10/Exiles | Given EX-Vault access code 1368 | -10/Exiles | Opened EX-Vault 1391 | -10/Exiles | Found Prototype Device 1398 | -10/Exiles | Found Prototype Device 1424 | -10/Exiles | Identified Cloak of Protection 1424 | -10/Exiles | Identified Trap Reconfigurator 1502 | -10/Exiles | Warned to stay clear of 0b10 Research branches 1585 | -10/Exiles | Met EX-DEC 1715 | -10/Exiles | Discovered exit to Mines (range 11) 1741 | -10/Exiles | Stole two prototypes: Cloak of Protection, Trap Reconfigurator 1741 | -10/Exiles | Entered Mines 1791 | -9/Mines | Received a Rocket Launcher from a helpful Derelict 1827 | -9/Mines | Discovered new exit (range 8) 1831 | -9/Mines | Received a Mining Laser from a helpful Derelict 1840 | -9/Mines | Identified exit to Materials 1841 | -9/Mines | Entered Materials 1841 | -8/Materials | Accompanied by 1 ally 1841 | -8/Materials | Evolved 4 slots: Propulsion x1, Utility x3 2607 | -8/Materials | Discovered new exit (range 14) 2631 | -8/Materials | Identified exit to Factory 3091 | -8/Materials | Build established: Scavenger-Mutant 3098 | -8/Materials | Discovered new exit (range 5) 3104 | -8/Materials | Identified exit to Storage 3163 | -8/Materials | Entered Storage 3731 | -8/Storage | Repaired Lgt. Treads 4632 | -8/Storage | Discovered exit to Factory (range 15) 4754 | -8/Storage | Entered Factory 4754 | -7/Factory | Evolved 2 slots: Utility x2 4756 | -7/Factory | FarCom data flow suspended 5141 | -7/Factory | Build established: Mutant 5651 | -7/Factory | Discovered new exit (range 11) 5815 | -7/Factory | Build established: Scavenger-Mutant 5816 | -7/Factory | Entered Lower Caves 6255 | -7/Lower Caves | Learned location of Extension (-5) 6676 | -7/Lower Caves | Encountered a Warlord checkpoint 6690 | -7/Lower Caves | Discovered new exit (range 6) 7821 | -7/Lower Caves | Entered another Lower Caves area 7989 | -7/Lower Caves | Discovered new exit (range 13) 8425 | -7/Lower Caves | Spotted 2X-FCX(f) 8426 | -7/Lower Caves | Encountered a Master Thief 8427 | -7/Lower Caves | Spotted QM-XZ9(f) 8427 | -7/Lower Caves | Spotted P8-DOT(f) 8427 | -7/Lower Caves | Cloak of Protection stolen by Master Thief 8428 | -7/Lower Caves | Encountered a Master Thief 8428 | -7/Lower Caves | Encountered a Master Thief 8429 | -7/Lower Caves | Spotted NR-V5L(f) 8429 | -7/Lower Caves | Spotted 5D-192(f) 8430 | -7/Lower Caves | Encountered a Master Thief 8430 | -7/Lower Caves | Encountered a Master Thief 8434 | -7/Lower Caves | Trap Reconfigurator stolen by Master Thief 8435 | -7/Lower Caves | Destroyed 2X-FCX(f) 8437 | -7/Lower Caves | Lgt. Angular Momentum Engine stolen by Master Thief 8462 | -7/Lower Caves | Gauss Cannon stolen by Master Thief 8615 | -7/Lower Caves | Discovered new exit (range 3) 9284 | -7/Lower Caves | Entered Factory 9284 | -6/Factory | Evolved 2 slots: Propulsion x1, Weapon x1 9574 | -6/Factory | Build established: Scavenger-Gunner 10011 | -6/Factory | Garrison activated, responded to threat 11555 | -6/Factory | Build established: Gunner 12009 | -6/Factory | Discovered new exit (range 16) 12058 | -6/Factory | Identified exit to Factory 12061 | -6/Factory | Entered another Factory area 12061 | -5/Factory | Evolved 2 slots: Utility x2 12062 | -5/Factory | Identified exit to Extension 13078 | -5/Factory | Entered Extension 13295 | -5/Extension | Spotted B-75 Beast 13889 | -5/Extension | Rescued A7 14043 | -5/Extension | Rescued a captive Derelict 14044 | -5/Extension | Rescued a captive Derelict 14397 | -5/Extension | Repaired Hvy. Treads 14494 | -5/Extension | Spotted B-75 Beast 14734 | -5/Extension | Disrupted transfer network 14786 | -5/Extension | Destroyed A7 14802 | -5/Extension | Extracted ID and sensor layout for unrecognized location from A7's data core 14917 | -5/Extension | Discovered new exit (range 3) 14920 | -5/Extension | Identified exit to Factory 15084 | -5/Extension | Discovered new exit (range 16) 15087 | -5/Extension | Discovered exit to Factory (range 14) 15143 | -5/Extension | Identified exit to Cetus 15144 | -5/Extension | Entered Cetus 15165 | -5/Cetus | Spotted Cetus Guard 15168 | -5/Cetus | Spotted Cetus Guard 15186 | -5/Cetus | Destroyed Cetus Guard 15187 | -5/Cetus | Spotted Cetus Guard 15195 | -5/Cetus | Spotted Cetus Guard 15215 | -5/Cetus | Destroyed Cetus Guard 15221 | -5/Cetus | Destroyed Cetus Guard 15242 | -5/Cetus | Destroyed Cetus Guard 15263 | -5/Cetus | Lost 7 parts (1p3n3w) 15303 | -5/Cetus | Cetus Manufacturing Module disabled 15355 | -5/Cetus | Lost 4 parts (1p1u2w) 15595 | -5/Cetus | Discovered new exit (range 16) 15618 | -5/Cetus | Identified exit to Archives 15653 | -5/Cetus | Spotted Cetus Guard 15654 | -5/Cetus | Spotted Cetus Guard 15690 | -5/Cetus | Entered Archives 15771 | -5/Archives | Unable to access archive contents 15820 | -5/Archives | Discovered exit to Factory (range 4) 15824 | -5/Archives | Lost 4 parts (4w) 15968 | -5/Archives | Unable to access archive contents 15986 | -5/Archives | Unable to access archive contents 15986 | -5/Archives | Unable to access archive contents 15996 | -5/Archives | Discovered new exit (range 13) 16013 | -5/Archives | Identified exit to Hub_04(d) 16048 | -5/Archives | Discovered exit to Hub_04(d) (range 16) 16090 | -5/Archives | Entered Hub_04(d) 16090 | -5/Hub_04(d) | Discovered exit to Factory (range 10) 16205 | -5/Hub_04(d) | Build established: Scavenger-Mutant 16338 | -5/Hub_04(d) | Entered Factory 16338 | -4/Factory | Evolved 2 slots: Utility x1, Weapon x1 16788 | -4/Factory | Discovered new exit (range 13) 16826 | -4/Factory | Identified exit to Upper Caves 16831 | -4/Factory | Entered Upper Caves 16841 | -4/Upper Caves | Learned 4 Research zone layouts 16891 | -4/Upper Caves | Build established: Scavenger-Skirmisher 17184 | -4/Upper Caves | A Commander dispatched an escort 17190 | -4/Upper Caves | Learned location of 1 exit from Factory 17190 | -4/Upper Caves | Learned Factory stockpile data 17190 | -4/Upper Caves | Learned Factory security intel 17190 | -4/Upper Caves | Learned Extension security intel 17190 | -4/Upper Caves | Learned Armory terminal intel 17583 | -4/Upper Caves | Discovered new exit (range 20) 17699 | -4/Upper Caves | Identified exit to Upper Caves 17704 | -4/Upper Caves | Entered another Upper Caves area 17769 | -4/Upper Caves | Discovered new exit (range 14) 17818 | -4/Upper Caves | Attracted the attention of an 0b10 checkpoint 17899 | -4/Upper Caves | Identified exit to Research 18303 | -4/Upper Caves | Attracted the attention of an 0b10 base 18478 | -4/Upper Caves | Destroyed 10 combat bots 18504 | -4/Upper Caves | Learned 8 Research zone layouts 18504 | -4/Upper Caves | Learned Extension trap positions 18504 | -4/Upper Caves | Learned Extension emergency access door positions 18769 | -4/Upper Caves | Learned Research emergency access door positions 18790 | -4/Upper Caves | Learned Research security intel 18852 | -4/Upper Caves | Spotted DM-H0G(f) 18853 | -4/Upper Caves | Encountered a Master Thief 18853 | -4/Upper Caves | Spotted 1L-14S(f) 18853 | -4/Upper Caves | Spotted W3-X83(f) 18854 | -4/Upper Caves | Encountered a Master Thief 18854 | -4/Upper Caves | Encountered a Master Thief 18854 | -4/Upper Caves | Spotted VS-6HN(f) 18855 | -4/Upper Caves | Encountered a Master Thief 18858 | -4/Upper Caves | Imp. KE Penetrator stolen by Master Thief 18870 | -4/Upper Caves | Imp. KE Penetrator stolen by Master Thief 18872 | -4/Upper Caves | Destroyed DM-H0G(f) 18923 | -4/Upper Caves | Discovered new exit (range 10) 18937 | -4/Upper Caves | Identified exit to Zhirov 18939 | -4/Upper Caves | Entered Zhirov 18939 | -4/Zhirov | Discovered new exit (range 3) 18941 | -4/Zhirov | Identified exit to Proximity Caves 18968 | -4/Zhirov | Met Zhirov 19021 | -4/Zhirov | Found Alien Artifact 19022 | -4/Zhirov | Identified Transdimensional Reconstructor 19022 | -4/Zhirov | Warped through subspace 19202 | -4/Zhirov | Zhirov requested help retrieving the SGEMP Prototype 19229 | -4/Zhirov | Learned location of Quarantine (-3) 19229 | -4/Zhirov | Learned location of Testing (-2) 19229 | -4/Zhirov | Learned location of Command (-1) 19288 | -4/Zhirov | Found Alien Artifact 19327 | -4/Zhirov | Identified Integrated Dissipator 19327 | -4/Zhirov | Installed Integrated Dissipator, increased core heat dissipation (+20) 19482 | -4/Zhirov | Entered Proximity Caves 20203 | -3/Proximity Caves | Discovered exit to Research (range 14) 21046 | -3/Proximity Caves | Entered Research 21046 | -3/Research | Evolved 2 slots: Propulsion x1, Utility x1 21047 | -3/Research | Identified exit to Research 21159 | -3/Research | Found Antimissile System 21319 | -3/Research | Discovered new exit (range 15) 21337 | -3/Research | Fabricated E-15 Imp? 21348 | -3/Research | Identified exit to Quarantine 22654 | -3/Research | Garrison activated, responded to threat 22684 | -3/Research | Discovered exit to Research (range 22) 22700 | -3/Research | Spotted B-86 Titan 22722 | -3/Research | Entered another Research area 22722 | -2/Research | Evolved 2 slots: Propulsion x1, Utility x1 23043 | -2/Research | Spotted B-90 Cyclops 23047 | -2/Research | Build established: Assassin 23564 | -2/Research | Build established: Scavenger-Assassin 23937 | -2/Research | Spotted B-90 Cyclops 23985 | -2/Research | Discovered new exit (range 16) 24015 | -2/Research | First assault squad dispatched 24093 | -2/Research | Entered Access 24093 | -1/Access | Evolved 2 slots: Utility x2 24928 | -1/Access | Garrison activated, responded to threat 24941 | -1/Access | Build established: Scavenger-Gunner 25137 | -1/Access | First assault squad dispatched 25141 | -1/Access | System corruption reached 10% 25178 | -1/Access | Lost 4 parts (2u2w) 25270 | -1/Access | Crushed by falling debris 25347 | -1/Access | Spotted B-99 Colossus 25888 | -1/Access | Garrison activated, responded to threat 26210 | -1/Access | Lost 3 parts (1u2w) 26237 | -1/Access | Spotted B-99 Colossus 26290 | -1/Access | Destroyed 8 combat bots 26355 | -1/Access | Discovered new exit (range 7) 26356 | -1/Access | Lost 14 parts (1p6u7w) 26358 | -1/Access | Entered Command 26369 | -1/Command | Found Unknown Device 26369 | -1/Command | Identified Quantum Capacitor 26582 | -1/Command | Spotted M Guard 26582 | -1/Command | Spotted M Guard 26582 | -1/Command | Spotted Combat Programmer 26585 | -1/Command | Build established: Scavenger-Mutant 26608 | -1/Command | First assault squad dispatched 26699 | -1/Command | Spotted Combat Programmer 26701 | -1/Command | Core integrity fell below 50% 26713 | -1/Command | Core integrity fell below 20% 26723 | -1/Command | System corruption reached 30% 26731 | -1/Command | Destroyed by Combat Programmer with EMDS Last Messages --------------- 26700_ Impulse Thruster destroyed. 26701_ The unstable cave ceiling collapses. 26701_ Knocked back. 26702_ Penetrated by EMDS Slug. 26704_ The unstable cave ceiling collapses. 26704_ Penetrated by EMDS Slug. 26704_ Enh. Optical Array destroyed. 26704_ Imp. Launcher Guidance Computer destroyed. 26704_ Adv. Target Analyzer destroyed. 26707_ EMDS Slug penetrates Wall. 26709_ Penetrated by EMDS Slug. 26722_ Slammed into Combat Programmer. 26722_ Penetrated by EMDS Slug. 26722_ Combat Programmer suffers critical hit. 26723_ Slammed into Combat Programmer. 26724_ Penetrated by EMDS Slug. 26727_ Adv. Target Analyzer destroyed. 26731_ Penetrated by EMDS Slug. [Achievement: Back For More] [Achievement: 20k Club] Map ----- +----------------------------------------------------+ | ?????????????????????????????????????????????????? | | ?????????????????????????????????????????????????? | | ?????????????????????????????????????????????????? | | ?????????????????????????????????????????????????? | | ?????????????????????????????????????????????????? | | ?????????????????????????????????????????????????? | | ?????????????????????????????????????????????????? | | ?????????????????????????????????????????????????? | | ?????????????????????????????????????????????????? | | ?????????????????????????????????????????????????? | | ?????????????????????????????????????????????????? | | ?????????????????????????????????????????????????? | | ?????????????????????????????????????????????????? | | ?????????????????????????????????????????????????? | | ?????????????????????????????????????????????????? | | ?????????????????????????????????????????????????? | | ?????????????????????????????????????????????????? | | ?????????????????????????????????????????????????? | | ?????????????????????????????????????????????????? | | ?????????????????????????????????????????????????? | | ?????????????????????????????????????????????????? | | ?????????????????????????????????????????????????? | | ?????????????????????????????????????????????????? | | ?????????????????????????????????????????????????? | | ????????????????????????###??###?###??###????????? | | ????????????????????????#@#??# #?# #??# #????????? | | ????????????????????????# #??# #?# #??# #????????? | | ????????????????????????#p#### ### #### #????????? | | ????????????????????????# #????????? | | ????????????????????????########++"######????????? | | ???????????????????????????????# #?????????????? | | ???????????????????????????????# #?????????????? | | ???????????????????????????????# #?????????????? | | ???????????????????????????????# #?????????????? | | ???????????????????????????????# #?????????????? | | ???????????????????????????????# #?????????????? | | ???????????????????????????????# #?????????????? | | ???????????????????????????????# #?????????????? | | ???????????????????????????????# #?????????????? | | ???????????????????????????????# #?????????????? | | ???????????????????????????????# #?????????????? | | ???????????????????????????????# #?????????????? | | ???????????????????????????????# #?????????????? | | ???????????????????????????????# #?????????????? | | ???????????????????????????????# #?????????????? | | ???????????????????????????????# #?????????????? | | ???????????????????????????????# #?????????????? | | ???????????????????????????????# #??###????????? | | ??????????????????????????????## ### ####?????? | | ?????????????????????????????## #?????? | +----------------------------------------------------+ Best States ------------- Heat Dissipation 129 Energy Generation 25 Energy Capacity 950 Matter Stores 600 Matter Capacity 600 Sight Range 22 Robot Scan Range 15 Terrain Scan Range 24 Terrain Scan Density 85 ECM Strength 3 Jamming Range 16 Heat Shielding 100 Armor Coverage 1650 Resistance: KI 25 Resistance: TH 15 Resistance: EX 50 Power Shielding 90 Point Defense Rating 240 Weapon Cycling 25 Phase Shifting 5 Evasion (%) 63 Targeting Accuracy 18 Launcher Accuracy 30 Target Analysis 8 Armor Integrity Analysis 40 Recoil Reduction 6 Offensive Hacking 12 Defensive Hacking 14 Item Schematics ----------------- Rocket Launcher | -8/Materials | Scanalyzed Proton Missile Launcher | -8/Storage | Hacked Assault Drone Bay | -4/Zhirov | Free Exp. Heat Sink | -4/Zhirov | Free Exp. Optical Array | -4/Zhirov | Free Imp. Arc Thrower | -4/Zhirov | Free Robot Schematics ------------------ None Fabricated ------------ E-15 Imp | x2 | -3/Research | Preloaded Alien Tech Used ----------------- Transdimensional Reconstructor Integrated Dissipator Achievements -------------- 20k Club Back For More Backstab Explorer Knowing Is Half The Battle Prison Break Rockin' Loadout Subspace Traveler The Science Guy Turtlemind Challenges ------------ None Game ------ Seed HardcellStructuralProtection Manual? 0 Play Time 10:16:44 Cumulative 81.5 hours Start 2021.02.10 @ 20:06:32 End 2021.02.17 @ 19:06:52 Sessions 23 Manual Loads 0 Difficulty Rogue Special Mode None Game No. 51 Rogue 49 Adventurer 2 Explorer 0 Win Type - Total 0 Types 0/0/0/0/0/0/0/0/0 Lore% 34 Gallery% 42 Achievement% 31 Wizard Run 0 Options --------- ASCII 0 Keyboard 0 Movement Numpad Keybinds 0 Fullscreen 2 Font 20/Terminus Map View 66x50 Tactical HUD 1 Map Filters NONE Filters NONE Steam 1 RUN: ab253274-868a-42c9-933f-b99fc65146b3